lending/lending_fUSD_20240411
["ID","MTS","AMOUNT","RATE_DAILY","PERIOD"]
[322160432,1712859053839,-11121.78,0.00030136,2]
[322160433,1712859053849,-2847.42,0.00030136,2]
[322160434,1712859053858,-607.73,0.00030136,2]
[322160435,1712859053868,-1659.81,0.00030136,2]
[322160436,1712859053877,-500.0,0.00030136,2]
[322160437,1712859053886,-502.99666899,0.00030136,2]
[322160438,1712859053896,-500.0,0.00030136,2]
[322160439,1712859053905,-500.0,0.00030136,2]
[322160440,1712859053914,-519.16,0.00030136,2]
[322160441,1712859053923,-500.0,0.00030136,2]
[322160442,1712859053933,-3817.27,0.00030136,2]
[322160443,1712859053942,-500.0,0.00030136,2]
[322160444,1712859053951,-4430.13,0.00030136,2]
[322160445,1712859053960,-881.83,0.00030136,2]
[322160446,1712859053970,-2070.8,0.00030136,2]
[322160447,1712859053979,-1242.34,0.00030136,2]
[322160448,1712859053989,-365.1173045,0.00030136,2]
[322160449,1712859053998,-500.0,0.00030136,2]
[322160450,1712859054007,-2359.07,0.00030136,2]
[322160451,1712859054016,-553.26,0.00030136,2]
[322160452,1712859054025,-5478.57,0.00030136,2]
[322160453,1712859054035,-500.0,0.00030136,2]
[322160454,1712859054044,-5363.4,0.00030136,2]
[322160455,1712859054053,-1652.23,0.00030136,2]
[322160456,1712859054062,-500.0,0.00030136,2]
[322160457,1712859054072,-500.0,0.00030136,2]
[322160458,1712859054081,-465.43754232,0.00030136,2]
[322160459,1712859054090,-500.0,0.00030136,2]
[322160460,1712859054100,-3303.8,0.00030136,2]
[322160461,1712859054109,-3458.19,0.00030136,2]
[322160462,1712859054119,-5089.88,0.00030136,2]
[322160463,1712859054132,-1014.09,0.00030136,2]
[322160464,1712859054141,-500.0,0.00030136,2]
[322160465,1712859054151,-613.29,0.00030136,2]
[322160466,1712859054162,-500.0,0.00030136,2]
[322160467,1712859054171,-500.0,0.00030136,2]
[322160468,1712859054181,-500.0,0.00030136,2]
[322160469,1712859054190,-542.77,0.00030136,2]
[322160470,1712859054201,-6748.66,0.00030136,2]
[322160471,1712859054210,-1713.18,0.00030136,2]
[322160472,1712859054219,-2433.24,0.00030136,2]
[322160473,1712859054229,-3692.07,0.00030136,2]
[322160474,1712859054238,-1772.15,0.00030136,2]
[322160475,1712859054247,-500.0,0.00030136,2]
[322160476,1712859054257,-1518.78,0.00030136,2]
[322160477,1712859054266,-500.0,0.00030136,2]
[322160478,1712859054276,-3806.39,0.00030136,2]
[322160479,1712859054285,-6009.94,0.00030136,2]
[322160480,1712859054294,-3863.62,0.00030136,2]
[322160481,1712859054304,-5797.34,0.00030136,2]
[322160482,1712859054313,-6871.95,0.00030136,2]
[322160483,1712859054323,-500.0,0.00030136,2]
[322160484,1712859054332,-500.0,0.00030136,2]
[322160485,1712859054341,-2365.82,0.00030136,2]
[322160486,1712859054350,-500.0,0.00030136,2]
[322160487,1712859054360,-691.89,0.00030136,2]
[322160488,1712859054369,-1950.23,0.00030136,2]
[322160489,1712859054378,-1008.24,0.00030136,2]
[322160490,1712859054387,-500.0,0.00030136,2]
[322160491,1712859054397,-3944.23,0.00030136,2]
[322160492,1712859054407,-500.0,0.00030136,2]
[322160493,1712859054415,-500.0,0.00030136,2]
[322160494,1712859054425,-500.0,0.00030136,2]
[322160495,1712859054434,-2642.88,0.00030136,2]
[322160496,1712859054443,-837.23,0.00030136,2]
[322160497,1712859054452,-6098.13,0.00030136,2]
[322160498,1712859054461,-500.0,0.00030136,2]
[322160499,1712859054470,-3864.78,0.00030136,2]
[322160500,1712859054479,-500.0,0.00030136,2]
[322160501,1712859054489,-8593.51,0.00030136,2]
[322160502,1712859054499,-699.94,0.00030136,2]
[322160503,1712859054508,-11186.0,0.00030136,2]
[322160504,1712859054517,-500.0,0.00030136,2]
[322160505,1712859054526,-9373.76,0.00030136,2]
[322160506,1712859054535,-2592.27,0.00030136,2]
[322160507,1712859054544,-500.0,0.00030136,2]
[322160508,1712859054555,-511.95,0.00030136,2]
[322160509,1712859054564,-500.0,0.00030136,2]
[322160510,1712859054573,-500.0,0.00030136,2]
[322160511,1712859054583,-500.0,0.00030136,2]
[322160512,1712859054592,-500.0,0.00030136,2]
[322160513,1712859054601,-2818.52,0.00030136,2]
[322160514,1712859054680,-500.0,0.00030136,2]
[322160515,1712859054690,-306.21014491,0.00030136,2]
[322160516,1712859054699,-500.0,0.00030136,2]
[322160517,1712859054709,-1128.79,0.00030136,2]
[322160518,1712859054718,-860.75,0.00030136,2]
[322160519,1712859054727,-592.2,0.00030136,2]
[322160520,1712859054736,-500.0,0.00030136,2]
[322160521,1712859054746,-4015.61,0.00030136,2]
[322160522,1712859054755,-500.0,0.00030136,2]
[322160523,1712859054764,-4409.59,0.00030136,2]
[322160524,1712859054773,-1415.51,0.00030136,2]
[322160525,1712859054783,-703.26,0.00030136,2]
[322160526,1712859054792,-8402.81,0.00030136,2]
[322160527,1712859054802,-6263.39,0.00030136,2]
[322160528,1712859054811,-500.0,0.00030136,2]
[322160529,1712859054821,-500.0,0.00030136,2]
[322160530,1712859054830,-829.9,0.00030136,2]
[322160531,1712859054839,-500.0,0.00030136,2]
[322160532,1712859054848,-554.03,0.00030136,2]
[322160533,1712859054857,-40649.36,0.00030136,2]
[322160534,1712859054867,-3653.41,0.00030136,2]
[322160535,1712859054876,-500.0,0.00030136,2]
[322160536,1712859054886,-575.21,0.00030136,2]
[322160537,1712859054896,-500.0,0.00030136,2]
[322160538,1712859054906,-500.0,0.00030136,2]
[322160539,1712859054917,-2830.28,0.00030136,2]
[322160540,1712859054928,-5978.51,0.00030136,2]
[322160541,1712859054938,-976.65,0.00030136,2]
[322160542,1712859054947,-520.21,0.00030136,2]
[322160543,1712859054957,-500.0,0.00030136,2]
[322160544,1712859054966,-795.16,0.00030136,2]
[322160545,1712859054976,-536.0,0.00030137,2]
[322160546,1712859054985,-316.59652993,0.00030201,2]
[322160547,1712859054994,-150.0,0.00030292,2]
[322160548,1712859055003,-1369.65,0.00030309,2]
[322160549,1712859055012,-150.5,0.00030379,15]
[322160550,1712859055021,-494.0,0.00030379,15]
[322160551,1712859055032,-150.5,0.00030379,15]
[322160552,1712859055041,-800.0,0.00030384,2]
[322160553,1712859055052,-150.5,0.00030389,15]
[322160554,1712859055061,-494.0,0.00030389,15]
[322160555,1712859055070,-150.5,0.00030389,15]
[322160556,1712859055080,-150.5,0.00030399,15]
[322160557,1712859055089,-494.0,0.00030399,15]
[322160558,1712859055099,-150.5,0.00030399,15]
[322160559,1712859055108,-18362.263604,0.000304,2]
[322160560,1712859055118,-284.771409,0.000304,2]
[322160561,1712859055131,-1369.65,0.00030403,2]
[322160562,1712859055140,-1369.65,0.00030403,2]
[322160563,1712859055153,-1369.65,0.00030403,2]
[322160564,1712859055164,-843055.51271256,0.00030404,2]
[322160565,1712859055174,-156.140992,0.00030404,7]
[322160566,1712859055188,-156.140992,0.00030404,7]
[322160567,1712859055199,-1369.65,0.00030404,2]
[322160568,1712859055209,-1369.65,0.00030404,2]
[322160569,1712859055218,-1369.65,0.00030404,2]
[322160570,1712859055227,-1369.65,0.00030404,2]
[322160571,1712859055236,-1369.65,0.00030404,2]
[322160572,1712859055245,-1369.65,0.00030404,2]
[322160573,1712859055254,-1369.65,0.00030404,2]
[322160574,1712859055263,-1369.84,0.00030404,2]
[322160575,1712859055272,-985641.0,0.00030405,2]
[322160576,1712859055281,-156.140992,0.00030405,7]
[322160577,1712859055291,-156.140992,0.00030405,7]
[322160578,1712859055301,-155.0,0.00030408,4]
[322160579,1712859055310,-193.93233813,0.00030408,4]
[322160580,1712859055319,-839.67768077,0.00030408,4]
[322160581,1712859055328,-157.16506872,0.00030408,4]
[322160582,1712859055338,-418.20023543,0.00030408,4]
[322160583,1712859055347,-156.57341488,0.00030408,4]
[322160584,1712859055357,-1125.70996016,0.00030408,4]
[322160585,1712859055366,-276.02760212,0.00030408,4]
[322160586,1712859055375,-804.76,0.00030408,2]
[322160587,1712859055387,-192.30060608,0.00030409,4]
[322160588,1712859055397,-8501.69999999,0.00030409,4]
[322160589,1712859055406,-362.35522605,0.00030409,4]
[322160590,1712859055415,-1395.0,0.00030409,2]
[322160591,1712859055425,-1395.0,0.00030409,2]
[322160592,1712859055434,-1395.0,0.00030409,2]
[322160593,1712859055443,-804.76,0.00030409,2]
[322160594,1712859055453,-804.76,0.00030409,2]
[322160595,1712859055462,-804.76,0.00030409,2]
[322160596,1712859055471,-804.76,0.00030409,2]
[322160597,1712859055481,-804.76,0.00030409,2]
[322160598,1712859055490,-804.76,0.00030409,2]
[322160599,1712859055499,-804.76,0.00030409,2]
[322160600,1712859055509,-500.0,0.0003041,2]
[322160601,1712859055518,-500.0,0.0003041,2]
[322160602,1712859055528,-500.0,0.0003041,2]
[322160603,1712859055537,-500.0,0.0003041,2]
[322160604,1712859055548,-500.0,0.0003041,2]
[322160605,1712859055559,-500.0,0.0003041,2]
[322160606,1712859055569,-500.0,0.0003041,2]
[322160607,1712859055578,-500.0,0.0003041,2]
[322160608,1712859055588,-500.0,0.0003041,2]
[322160609,1712859055597,-500.0,0.0003041,2]
[322160610,1712859055607,-500.0,0.0003041,2]
[322160611,1712859055616,-372.88056091,0.0003041,2]
[322160612,1712859055626,-500.0,0.0003041,2]
[322160613,1712859055636,-500.0,0.0003041,2]
[322160614,1712859055645,-463.43261214,0.0003041,2]
[322160615,1712859055655,-527.59961969,0.0003041,2]
[322160616,1712859055668,-500.0,0.0003041,2]
[322160617,1712859055698,-479.05580862,0.0003041,2]
[322160618,1712859055741,-1102.11,0.0003041,2]
[322160619,1712859055792,-325.75717249,0.0003041,2]
[322160620,1712859055829,-500.0,0.0003041,2]
[322160621,1712859055838,-200.0,0.0003041,2]
[322160622,1712859055848,-500.0,0.0003041,2]
[322160623,1712859055858,-500.0,0.0003041,2]
[322160624,1712859055867,-521.83,0.0003041,2]
[322160625,1712859055876,-500.0,0.0003041,2]
[322160626,1712859055885,-500.0,0.0003041,2]
[322160627,1712859055894,-500.0,0.0003041,2]
[322160628,1712859055903,-521.57,0.0003041,2]
[322160629,1712859055913,-542.27006129,0.0003041,2]
[322160630,1712859055923,-500.0,0.0003041,2]
[322160631,1712859055932,-500.0,0.0003041,2]
[322160632,1712859055942,-665.4,0.0003041,2]
[322160633,1712859055951,-500.0,0.0003041,2]
[322160634,1712859055960,-500.0,0.0003041,2]
[322160635,1712859055970,-500.0,0.0003041,2]
[322160636,1712859055979,-500.0,0.0003041,2]
[322160637,1712859055988,-500.0,0.0003041,2]
[322160638,1712859055997,-500.0,0.0003041,2]
[322160639,1712859056006,-500.0,0.0003041,2]
[322160640,1712859056015,-1245.45,0.0003041,2]
[322160641,1712859056025,-500.0,0.0003041,2]
[322160642,1712859056034,-628.90989534,0.0003041,2]
[322160643,1712859056043,-500.0,0.0003041,2]
[322160644,1712859056056,-500.0,0.0003041,2]
[322160645,1712859056065,-500.0,0.0003041,2]
[322160646,1712859056075,-500.0,0.0003041,2]
[322160647,1712859056084,-500.0,0.0003041,2]
[322160648,1712859056093,-500.0,0.0003041,2]
[322160649,1712859056102,-500.0,0.0003041,2]
[322160650,1712859056111,-748.14,0.0003041,2]
[322160651,1712859056121,-500.0,0.0003041,2]
[322160652,1712859056133,-205.85034716,0.0003041,2]
[322160653,1712859056142,-500.0,0.0003041,2]
[322160654,1712859056151,-500.0,0.0003041,2]
[322160655,1712859056160,-500.0,0.0003041,2]
[322160656,1712859056170,-500.0,0.0003041,2]
[322160657,1712859056179,-944.43,0.0003041,2]
[322160658,1712859056189,-526.1,0.0003041,2]
[322160659,1712859056199,-500.0,0.0003041,2]
[322160660,1712859056209,-500.0,0.0003041,2]
[322160661,1712859056219,-500.0,0.0003041,2]
[322160662,1712859056228,-500.0,0.0003041,2]
[322160663,1712859056238,-500.0,0.0003041,2]
[322160664,1712859056247,-500.0,0.0003041,2]
[322160665,1712859056257,-500.0,0.0003041,2]
[322160666,1712859056266,-500.0,0.0003041,2]
[322160667,1712859056276,-623.40103296,0.0003041,2]
[322160668,1712859056286,-500.0,0.0003041,2]
[322160669,1712859056295,-500.0,0.0003041,2]
[322160670,1712859056306,-500.0,0.0003041,2]
[322160671,1712859056316,-1039.77,0.0003041,2]
[322160672,1712859056325,-500.0,0.0003041,2]
[322160673,1712859056335,-500.0,0.0003041,2]
[322160674,1712859056344,-500.0,0.0003041,2]
[322160675,1712859056353,-707.9,0.0003041,2]
[322160676,1712859056363,-500.0,0.0003041,2]
[322160677,1712859056373,-500.0,0.0003041,2]
[322160678,1712859056382,-500.0,0.0003041,2]
[322160679,1712859056391,-500.0,0.0003041,2]
[322160680,1712859056401,-500.0,0.0003041,2]
[322160681,1712859056411,-551.13,0.0003041,2]
[322160682,1712859056420,-500.0,0.0003041,2]
[322160683,1712859056429,-500.0,0.0003041,2]
[322160684,1712859056439,-500.0,0.0003041,2]
[322160685,1712859056449,-500.0,0.0003041,2]
[322160686,1712859056459,-500.0,0.0003041,2]
[322160687,1712859056469,-548.268284,0.0003041,2]
[322160688,1712859056478,-914.24,0.0003041,2]
[322160689,1712859056488,-500.0,0.0003041,2]
[322160690,1712859056497,-500.0,0.0003041,2]
[322160691,1712859056507,-500.0,0.0003041,2]
[322160692,1712859056518,-500.0,0.0003041,2]
[322160693,1712859056527,-500.0,0.0003041,2]
[322160694,1712859056537,-500.0,0.0003041,2]
[322160695,1712859056547,-1057.42,0.0003041,2]
[322160696,1712859056558,-500.0,0.0003041,2]
[322160697,1712859056568,-500.0,0.0003041,2]
[322160698,1712859056577,-503.65514865,0.0003041,2]
[322160699,1712859056588,-500.0,0.0003041,2]
[322160700,1712859056598,-500.0,0.0003041,2]
[322160701,1712859056608,-500.0,0.0003041,2]
[322160702,1712859056618,-572.92838807,0.0003041,2]
[322160703,1712859056627,-500.0,0.0003041,2]
[322160704,1712859056637,-500.0,0.0003041,2]
[322160705,1712859056647,-703.96,0.0003041,2]
[322160706,1712859056656,-500.0,0.0003041,2]
[322160707,1712859056666,-567.35101949,0.0003041,2]
[322160708,1712859056676,-825.28,0.0003041,2]
[322160709,1712859056685,-500.0,0.0003041,2]
[322160710,1712859056695,-383.23948722,0.0003041,2]
[322160711,1712859056706,-500.0,0.0003041,2]
[322160712,1712859056715,-762.19,0.0003041,2]
[322160713,1712859056725,-610.03,0.0003041,2]
[322160714,1712859056735,-500.0,0.0003041,2]
[322160715,1712859056745,-500.0,0.0003041,2]
[322160716,1712859056755,-659.45,0.0003041,2]
[322160717,1712859056765,-500.0,0.0003041,2]
[322160718,1712859056774,-500.0,0.0003041,2]
[322160719,1712859056784,-500.0,0.0003041,2]
[322160720,1712859056794,-342.91548874,0.0003041,2]
[322160721,1712859056804,-500.0,0.0003041,2]
[322160722,1712859056813,-500.0,0.0003041,2]
[322160723,1712859056823,-500.0,0.0003041,2]
[322160724,1712859056833,-801.58,0.0003041,2]
[322160725,1712859056842,-766.28,0.0003041,2]
[322160726,1712859056851,-1089.98,0.0003041,2]
[322160727,1712859056861,-555.06,0.0003041,2]
[322160728,1712859056870,-256.95808818,0.0003041,2]
[322160729,1712859056880,-500.0,0.0003041,2]
[322160730,1712859056890,-1022.01,0.0003041,2]
[322160731,1712859056899,-500.0,0.0003041,2]
[322160732,1712859056910,-500.0,0.0003041,2]
[322160733,1712859056920,-328.15875471,0.0003041,2]
[322160734,1712859056929,-556.51674503,0.0003041,2]
[322160735,1712859056939,-748.34,0.0003041,2]
[322160736,1712859056948,-500.0,0.0003041,2]
[322160737,1712859056958,-500.0,0.0003041,2]
[322160738,1712859056969,-500.0,0.0003041,2]
[322160739,1712859056979,-506.60188452,0.0003041,2]
[322160740,1712859056989,-500.0,0.0003041,2]
[322160741,1712859056998,-241.78824192,0.0003041,2]
[322160742,1712859057008,-500.0,0.0003041,2]
[322160743,1712859057017,-1153.18,0.0003041,2]
[322160744,1712859057027,-500.0,0.0003041,2]
[322160745,1712859057037,-456.66068442,0.0003041,2]
[322160746,1712859057047,-500.0,0.0003041,2]
[322160747,1712859057057,-521.59184694,0.0003041,2]
[322160748,1712859057067,-945.99,0.0003041,2]
[322160749,1712859057076,-500.0,0.0003041,2]
[322160750,1712859057086,-500.0,0.0003041,2]
[322160751,1712859057096,-500.0,0.0003041,2]
[322160752,1712859057106,-1428.79,0.0003041,2]
[322160753,1712859057118,-382.16187162,0.0003041,2]
[322160754,1712859057128,-500.0,0.0003041,2]
[322160755,1712859057138,-500.0,0.0003041,2]
[322160756,1712859057147,-500.0,0.0003041,2]
[322160757,1712859057158,-500.0,0.0003041,2]
[322160758,1712859057168,-500.0,0.0003041,2]
[322160759,1712859057177,-560.04829344,0.0003041,2]
[322160760,1712859057187,-500.0,0.0003041,2]
[322160761,1712859057197,-500.0,0.0003041,2]
[322160762,1712859057206,-500.0,0.0003041,2]
[322160763,1712859057216,-792.97,0.0003041,2]
[322160764,1712859057226,-500.0,0.0003041,2]
[322160765,1712859057235,-500.0,0.0003041,2]
[322160766,1712859057245,-586.22,0.0003041,2]
[322160767,1712859057255,-506.63,0.0003041,2]
[322160768,1712859057264,-684.56,0.0003041,2]
[322160769,1712859057274,-1724.94,0.0003041,2]
[322160770,1712859057284,-500.0,0.0003041,2]
[322160771,1712859057293,-609.23,0.0003041,2]
[322160772,1712859057304,-500.0,0.0003041,2]
[322160773,1712859057314,-500.0,0.0003041,2]
[322160774,1712859057324,-541.82,0.0003041,2]
[322160775,1712859057334,-1795.91,0.0003041,2]
[322160776,1712859057344,-1400.06,0.0003041,2]
[322160777,1712859057354,-500.0,0.0003041,2]
[322160778,1712859057363,-200.0,0.0003041,2]
[322160779,1712859057373,-500.0,0.0003041,2]
[322160780,1712859057383,-278.10630877,0.0003041,2]
[322160781,1712859057392,-574.63,0.0003041,2]
[322160782,1712859057402,-500.0,0.0003041,2]
[322160783,1712859057412,-731.53,0.0003041,2]
[322160784,1712859057422,-664.74,0.0003041,2]
[322160785,1712859057432,-1665.53,0.0003041,2]
[322160786,1712859057442,-904.3,0.0003041,2]
[322160787,1712859057451,-2171.24,0.0003041,2]
[322160788,1712859057461,-500.0,0.0003041,2]
[322160789,1712859057471,-500.0,0.0003041,2]
[322160790,1712859057480,-500.0,0.0003041,2]
[322160791,1712859057490,-559.12,0.0003041,2]
[322160792,1712859057499,-500.0,0.0003041,2]
[322160793,1712859057509,-651.78,0.0003041,2]
[322160794,1712859057518,-1276.88,0.0003041,2]
[322160795,1712859057528,-948.26,0.0003041,2]
[322160796,1712859057538,-500.0,0.0003041,2]
[322160797,1712859057548,-500.0,0.0003041,2]
[322160798,1712859057559,-1400.05,0.0003041,2]
[322160799,1712859057569,-644.7,0.0003041,2]
[322160800,1712859057579,-500.0,0.0003041,2]
[322160801,1712859057588,-1387.52,0.0003041,2]
[322160802,1712859057598,-609.0,0.0003041,2]
[322160803,1712859057608,-884.2,0.0003041,2]
[322160804,1712859057618,-500.0,0.0003041,2]
[322160805,1712859057628,-500.0,0.0003041,2]
[322160806,1712859057638,-1096.85,0.0003041,2]
[322160807,1712859057656,-738.18,0.0003041,2]
[322160808,1712859057669,-656.85,0.0003041,2]
[322160809,1712859057679,-742.21,0.0003041,2]
[322160810,1712859057689,-500.0,0.0003041,2]
[322160811,1712859057699,-500.0,0.0003041,2]
[322160812,1712859057710,-884.44,0.0003041,2]
[322160813,1712859057721,-592.37,0.0003041,2]
[322160814,1712859057731,-738.09,0.0003041,2]
[322160815,1712859057742,-549.28,0.0003041,2]
[322160816,1712859057753,-500.0,0.0003041,2]
[322160817,1712859057763,-500.0,0.0003041,2]
[322160818,1712859057773,-688.89,0.0003041,2]
[322160819,1712859057783,-500.0,0.0003041,2]
[322160820,1712859057793,-2048.31,0.0003041,2]
[322160821,1712859057803,-500.0,0.0003041,2]
[322160822,1712859057814,-500.0,0.0003041,2]
[322160823,1712859057824,-500.0,0.0003041,2]
[322160824,1712859057834,-500.0,0.0003041,2]
[322160825,1712859057844,-500.0,0.0003041,2]
[322160826,1712859057854,-500.0,0.0003041,2]
[322160827,1712859057864,-500.0,0.0003041,2]
[322160828,1712859057874,-1109.51,0.0003041,2]
[322160829,1712859057884,-500.0,0.0003041,2]
[322160830,1712859057895,-883.71,0.0003041,2]
[322160831,1712859057906,-500.0,0.0003041,2]
[322160832,1712859057916,-610.08,0.0003041,2]
[322160833,1712859057927,-915.18,0.0003041,2]
[322160834,1712859057937,-1583.61,0.0003041,2]
[322160835,1712859057947,-500.0,0.0003041,2]
[322160836,1712859057958,-1225.2,0.0003041,2]
[322160837,1712859057968,-500.0,0.0003041,2]
[322160838,1712859057978,-500.0,0.0003041,2]
[322160839,1712859057988,-1275.59,0.0003041,2]
[322160840,1712859057998,-500.0,0.0003041,2]
[322160841,1712859058008,-500.0,0.0003041,2]
[322160842,1712859058019,-500.0,0.0003041,2]
[322160843,1712859058029,-1115.43,0.0003041,2]
[322160844,1712859058040,-1228.25,0.0003041,2]
[322160845,1712859058050,-500.0,0.0003041,2]
[322160846,1712859058061,-163.18685028,0.0003041,2]
[322160847,1712859058071,-500.0,0.0003041,2]
[322160848,1712859058081,-500.0,0.0003041,2]
[322160849,1712859058092,-862.3,0.0003041,2]
[322160850,1712859058103,-500.0,0.0003041,2]
[322160851,1712859058114,-500.0,0.0003041,2]
[322160852,1712859058126,-500.0,0.0003041,2]
[322160853,1712859058137,-500.0,0.0003041,2]
[322160854,1712859058148,-500.0,0.0003041,2]
[322160855,1712859058159,-1625.5,0.0003041,2]
[322160856,1712859058169,-500.0,0.0003041,2]
[322160857,1712859058180,-500.0,0.0003041,2]
[322160858,1712859058191,-500.0,0.0003041,2]
[322160859,1712859058203,-634.36069101,0.0003041,2]
[322160860,1712859058213,-500.0,0.0003041,2]
[322160861,1712859058224,-156.140992,0.0003041,7]
[322160862,1712859058234,-544.22,0.0003041,2]
[322160863,1712859058244,-156.140992,0.0003041,7]
[322160864,1712859058255,-1806.2,0.0003041,2]
[322160865,1712859058266,-500.0,0.0003041,2]
[322160866,1712859058276,-500.0,0.0003041,2]
[322160867,1712859058287,-156.140992,0.0003041,7]
[322160868,1712859058297,-156.140992,0.0003041,7]
[322160869,1712859058308,-500.0,0.0003041,2]
[322160870,1712859058319,-500.0,0.0003041,2]
[322160871,1712859058329,-500.0,0.0003041,2]
[322160872,1712859058339,-500.0,0.0003041,2]
[322160873,1712859058350,-500.0,0.0003041,2]
[322160874,1712859058360,-156.140992,0.0003041,7]
[322160875,1712859058371,-156.140992,0.0003041,7]
[322160876,1712859058381,-500.0,0.0003041,2]
[322160877,1712859058391,-500.0,0.0003041,2]
[322160878,1712859058402,-1125.36,0.0003041,2]
[322160879,1712859058615,-156.140992,0.0003041,7]
[322160880,1712859058646,-156.141002,0.0003041,7]
[322160881,1712859058656,-556.22148792,0.0003041,2]
[322160882,1712859058665,-597.77,0.0003041,2]
[322160883,1712859058675,-500.0,0.0003041,2]
[322160884,1712859058685,-500.0,0.0003041,2]
[322160885,1712859058694,-832.01,0.0003041,2]
[322160886,1712859058704,-500.0,0.0003041,2]
[322160887,1712859058713,-500.0,0.0003041,2]
[322160888,1712859058723,-828.7,0.0003041,2]
[322160889,1712859058733,-500.0,0.0003041,2]
[322160890,1712859058743,-572.82,0.0003041,2]
[322160891,1712859058752,-500.0,0.0003041,2]
[322160892,1712859058761,-914.78,0.0003041,2]
[322160893,1712859058771,-500.0,0.0003041,2]
[322160894,1712859058780,-984.76,0.0003041,2]
[322160895,1712859058789,-500.0,0.0003041,2]
[322160896,1712859058803,-500.0,0.0003041,2]
[322160897,1712859058815,-500.0,0.0003041,2]
[322160898,1712859058824,-627.72,0.0003041,2]
[322160899,1712859058834,-1599.18,0.0003041,2]
[322160900,1712859058844,-1193.43,0.0003041,2]
[322160901,1712859058854,-1143.02,0.0003041,2]
[322160902,1712859058864,-500.0,0.0003041,2]
[322160903,1712859058873,-500.0,0.0003041,2]
[322160904,1712859058884,-500.0,0.0003041,2]
[322160905,1712859058893,-500.0,0.0003041,2]
[322160906,1712859058903,-835.59,0.0003041,2]
[322160907,1712859058912,-500.0,0.0003041,2]
[322160908,1712859058922,-500.0,0.0003041,2]
[322160909,1712859058932,-500.0,0.0003041,2]
[322160910,1712859058941,-500.0,0.0003041,2]
[322160911,1712859058951,-1813.85,0.0003041,2]
[322160912,1712859058961,-1864.56,0.0003041,2]
[322160913,1712859058971,-500.0,0.0003041,2]
[322160914,1712859058981,-500.0,0.0003041,2]
[322160915,1712859058990,-579.09,0.0003041,2]
[322160916,1712859059000,-500.0,0.0003041,2]
[322160917,1712859059009,-500.0,0.0003041,2]
[322160918,1712859059019,-500.0,0.0003041,2]
[322160919,1712859059029,-559.93,0.0003041,2]
[322160920,1712859059038,-600.78,0.0003041,2]
[322160921,1712859059048,-500.0,0.0003041,2]
[322160922,1712859059059,-500.0,0.0003041,2]
[322160923,1712859059069,-500.0,0.0003041,2]
[322160924,1712859059078,-500.0,0.0003041,2]
[322160925,1712859059089,-500.0,0.0003041,2]
[322160926,1712859059099,-500.0,0.0003041,2]
[322160927,1712859059109,-500.0,0.0003041,2]
[322160928,1712859059120,-573.89,0.0003041,2]
[322160929,1712859059132,-500.0,0.0003041,2]
[322160930,1712859059141,-500.0,0.0003041,2]
[322160931,1712859059151,-753.65,0.0003041,2]